[Event "Rapid Tournament (RAP)"]
[Site "Biel, Switzerland"]
[Date "2026.07.12"]
[Round "9.8"]
[White "Lu, Miaoyi"]
[Black "Fogo Esquivel, Levi Kalani Alexander"]
[Result "1-0"]
[TimeControl "15 + 5"]
[WhiteTitle "-"]
[BlackTitle "-"]
[WhiteFideId "8618020"]
[BlackFideId "5183189"]
[WhiteElo "2309"]
[BlackElo "2088"]

1. e4 {[%clk 00:15:09]} e5 {[%clk 00:15:07]} {[%emt 00:00:04]} 2. Nf3 {[%clk
00:15:12]} {[%emt 00:00:03]} Nc6 {[%clk 00:15:10]} 3. Bc4 {[%clk 00:15:10]}
{[%emt 00:00:07]} Nf6 {[%clk 00:15:00]} {[%emt 00:00:15]} 4. d4 {[%clk
00:15:09]} {[%emt 00:00:06]} exd4 {[%clk 00:15:01]} {[%emt 00:00:04]} 5. e5
{[%clk 00:15:13]} d5 {[%clk 00:15:05]} {[%emt 00:00:01]} 6. Bb5 {[%clk
00:15:17]} Ne4 {[%clk 00:15:09]} {[%emt 00:00:01]} 7. Nxd4 {[%clk 00:15:20]}
{[%emt 00:00:01]} Bd7 {[%clk 00:15:13]} 8. Bxc6 {[%clk 00:15:24]} {[%emt
00:00:02]} bxc6 {[%clk 00:15:17]} {[%emt 00:00:01]} 9. O-O {[%clk 00:15:27]}
{[%emt 00:00:02]} Bc5 {[%clk 00:15:21]} 10. f3 {[%clk 00:15:31]} {[%emt
00:00:01]} Ng5 {[%clk 00:15:25]} 11. f4 {[%clk 00:15:34]} {[%emt 00:00:01]} Ne4
{[%clk 00:15:29]} 12. Be3 {[%clk 00:15:38]} {[%emt 00:00:02]} O-O {[%clk
00:14:57]} {[%emt 00:00:37]} 13. Nd2 {[%clk 00:15:40]} {[%emt 00:00:02]} Nxd2
{[%clk 00:14:57]} {[%emt 00:00:05]} 14. Qxd2 {[%clk 00:15:43]} {[%emt
00:00:03]} Qe7 {[%clk 00:14:18]} {[%emt 00:00:44]} 15. Rae1 {[%clk 00:15:31]}
{[%emt 00:00:17]} Bb6 {[%clk 00:14:16]} {[%emt 00:00:06]} 16. Nb3 {[%clk
00:14:17]} {[%emt 00:01:20]} Bf5 {[%clk 00:14:02]} {[%emt 00:00:19]} 17. Qc3
{[%clk 00:14:12]} {[%emt 00:00:09]} Qd7 {[%clk 00:11:53]} {[%emt 00:02:14]} 18.
Bc5 {[%clk 00:13:18]} {[%emt 00:01:00]} Rfe8 {[%clk 00:11:27]} {[%emt
00:00:31]} 19. Kh1 {[%clk 00:11:47]} {[%emt 00:01:36]} Be4 {[%clk 00:10:29]}
{[%emt 00:01:02]} 20. Rf2 {[%clk 00:11:07]} {[%emt 00:00:46]} Rab8 {[%clk
00:07:14]} {[%emt 00:03:20]} 21. Ref1 {[%clk 00:10:42]} {[%emt 00:00:30]} d4
{[%clk 00:05:56]} {[%emt 00:01:23]} 22. Bxd4 {[%clk 00:10:10]} {[%emt
00:00:37]} Bxd4 {[%clk 00:05:25]} {[%emt 00:00:35]} 23. Nxd4 {[%clk 00:10:13]}
{[%emt 00:00:02]} Red8 {[%clk 00:05:23]} {[%emt 00:00:08]} 24. Nb3 {[%clk
00:09:11]} {[%emt 00:01:07]} Qf5 {[%clk 00:04:00]} {[%emt 00:01:28]} 25. Nc5
{[%clk 00:09:07]} {[%emt 00:00:09]} Bd5 {[%clk 00:03:54]} {[%emt 00:00:10]} 26.
b3 {[%clk 00:09:11]} {[%emt 00:00:02]} h5 {[%clk 00:02:31]} {[%emt 00:01:28]}
27. Qe3 {[%clk 00:08:38]} {[%emt 00:00:38]} a5 {[%clk 00:02:15]} {[%emt
00:00:21]} 28. Rd2 {[%clk 00:07:20]} {[%emt 00:01:22]} h4 {[%clk 00:01:41]}
{[%emt 00:00:40]} 29. h3 {[%clk 00:07:24]} {[%emt 00:00:01]} Be6 {[%clk
00:00:41]} {[%emt 00:01:05]} 30. Rfd1 {[%clk 00:07:27]} {[%emt 00:00:01]} Rxd2
{[%clk 00:00:41]} {[%emt 00:00:06]} 31. Rxd2 {[%clk 00:06:22]} {[%emt
00:01:10]} Re8 {[%clk 00:00:38]} {[%emt 00:00:08]} 32. Qe4 {[%clk 00:04:42]}
{[%emt 00:01:45]} Qxe4 {[%clk 00:00:19]} {[%emt 00:00:24]} 33. Nxe4 {[%clk
00:04:46]} f6 {[%clk 00:00:14]} {[%emt 00:00:10]} 34. exf6 {[%clk 00:03:20]}
{[%emt 00:01:30]} Bxh3 {[%clk 00:00:18]} {[%emt 00:00:02]} 35. f7+ {[%clk
00:03:08]} {[%emt 00:00:17]} Kxf7 {[%clk 00:00:22]} {[%emt 00:00:01]} 36. Ng5+
{[%clk 00:03:13]} Kg6 {[%clk 00:00:26]} 37. Nxh3 {[%clk 00:03:04]} {[%emt
00:00:14]} Re1+ {[%clk 00:00:30]} 38. Kh2 {[%clk 00:03:01]} {[%emt 00:00:07]}
Rc1 {[%clk 00:00:34]} {[%emt 00:00:01]} 39. Re2 {[%clk 00:02:56]} {[%emt
00:00:11]} Kf5 {[%clk 00:00:38]} 40. Re5+ {[%clk 00:02:59]} {[%emt 00:00:02]}
Kf6 {[%clk 00:00:42]} {[%emt 00:00:02]} 41. Rc5 {[%clk 00:03:03]} {[%emt
00:00:01]} Ra1 {[%clk 00:00:45]} 42. Rxa5 {[%clk 00:02:59]} {[%emt 00:00:08]}
Ke6 {[%clk 00:00:48]} {[%emt 00:00:03]} 43. Ng5+ {[%clk 00:03:02]} {[%emt
00:00:02]} Kd6 {[%clk 00:00:52]} 44. Ne4+ {[%clk 00:03:06]} {[%emt 00:00:01]}
Ke6 {[%clk 00:00:56]} 45. Re5+ {[%clk 00:03:05]} {[%emt 00:00:05]} Kd7 {[%clk
00:01:00]} {[%emt 00:00:02]} 46. a4 {[%clk 00:03:07]} {[%emt 00:00:03]} Rc1
{[%clk 00:01:00]} {[%emt 00:00:05]} 47. Rc5 {[%clk 00:03:06]} {[%emt 00:00:05]}
Re1 {[%clk 00:01:01]} {[%emt 00:00:04]} 48. Rc4 {[%clk 00:03:05]} {[%emt
00:00:06]} Ra1 {[%clk 00:01:00]} {[%emt 00:00:07]} 49. Kh3 {[%clk 00:03:08]}
{[%emt 00:00:03]} Rh1+ {[%clk 00:01:03]} {[%emt 00:00:01]} 50. Kg4 {[%clk
00:03:11]} {[%emt 00:00:02]} Rg1 {[%clk 00:01:07]} {[%emt 00:00:01]} 51. a5
{[%clk 00:02:28]} {[%emt 00:00:49]} Rxg2+ {[%clk 00:01:10]} {[%emt 00:00:01]}
52. Kh3 {[%clk 00:02:31]} {[%emt 00:00:02]} Rg1 {[%clk 00:01:06]} {[%emt
00:00:09]} 53. a6 {[%clk 00:02:27]} {[%emt 00:00:09]} Rh1+ {[%clk 00:01:10]} 54.
Kg2 {[%clk 00:02:17]} {[%emt 00:00:15]} Re1 {[%clk 00:01:05]} {[%emt 00:00:09]}
55. a7 {[%clk 00:02:18]} {[%emt 00:00:05]} h3+ {[%clk 00:01:09]} {[%emt
00:00:01]} 56. Kxh3 {[%clk 00:02:20]} {[%emt 00:00:02]} Rh1+ {[%clk 00:01:13]}
{[%emt 00:00:01]} 57. Kg2 {[%clk 00:02:23]} {[%emt 00:00:03]} Rh8 {[%clk
00:01:16]} {[%emt 00:00:01]} 58. Nc5+ {[%clk 00:02:12]} {[%emt 00:00:16]} Ke7
{[%clk 00:01:15]} {[%emt 00:00:06]} 59. Na6 {[%clk 00:01:57]} {[%emt 00:00:21]}
Ra8 {[%clk 00:01:15]} {[%emt 00:00:04]} 60. Nb8 {[%clk 00:01:55]} {[%emt
00:00:08]} c5 {[%clk 00:01:05]} {[%emt 00:00:15]} 61. Rxc5 {[%clk 00:01:56]}
{[%emt 00:00:03]} Kd6 {[%clk 00:01:09]} {[%emt 00:00:02]} 62. Rc6+ {[%clk
00:02:00]} Kd5 {[%clk 00:01:12]} {[%emt 00:00:01]} 63. Rxc7 {[%clk 00:02:03]}
{[%emt 00:00:03]} g6 {[%clk 00:01:15]} {[%emt 00:00:02]} 64. Rg7 {[%clk
00:01:51]} {[%emt 00:00:17]} Kd4 {[%clk 00:01:16]} {[%emt 00:00:05]} 65. b4
{[%clk 00:01:31]} {[%emt 00:00:25]} Kc4 {[%emt 00:00:11]} 66. Rb7 {[%clk
00:01:27]} Kd4 {[%clk 00:01:17]} {[%emt 00:00:06]} 67. Nc6+ {[%clk 00:01:26]}
{[%emt 00:00:06]} 1-0

[Event "Rapid Tournament (RAP)"]
[Site "Biel, Switzerland"]
[Date "2026.07.12"]
[Round "9.9"]
[White "Shukhman, Anna"]
[Black "Xu, Chang(Cq)"]
[Result "0-1"]
[TimeControl "15 + 5"]
[WhiteTitle "-"]
[BlackTitle "-"]
[WhiteFideId "54180058"]
[BlackFideId "8641757"]
[WhiteElo "2272"]
[BlackElo "2082"]

1. e4 {[%clk 00:15:09]} {[%emt 00:00:01]} c5 {[%clk 00:15:08]} {[%emt
00:00:02]} 2. Nf3 {[%clk 00:15:12]} {[%emt 00:00:03]} d6 {[%clk 00:15:11]} 3.
d4 {[%clk 00:15:16]} cxd4 {[%clk 00:15:14]} {[%emt 00:00:02]} 4. Nxd4 {[%clk
00:15:19]} {[%emt 00:00:04]} Nf6 {[%clk 00:15:17]} 5. Nc3 {[%clk 00:15:22]}
{[%emt 00:00:02]} a6 {[%clk 00:15:20]} {[%emt 00:00:02]} 6. f4 {[%clk
00:15:23]} {[%emt 00:00:04]} e5 {[%clk 00:15:22]} {[%emt 00:00:03]} 7. Nb3
{[%clk 00:15:27]} {[%emt 00:00:01]} Be7 {[%clk 00:15:16]} {[%emt 00:00:11]} 8.
fxe5 {[%clk 00:15:30]} {[%emt 00:00:02]} dxe5 {[%clk 00:15:18]} {[%emt
00:00:02]} 9. Qxd8+ {[%clk 00:15:33]} {[%emt 00:00:02]} Bxd8 {[%clk 00:15:19]}
{[%emt 00:00:05]} 10. Be3 {[%clk 00:15:36]} {[%emt 00:00:02]} O-O {[%clk
00:14:55]} {[%emt 00:00:28]} 11. O-O-O {[%clk 00:15:13]} {[%emt 00:00:29]} Nc6
{[%clk 00:14:39]} {[%emt 00:00:20]} 12. Bd3 {[%clk 00:14:04]} {[%emt 00:01:14]}
Be7 {[%clk 00:12:35]} {[%emt 00:02:10]} 13. h3 {[%clk 00:11:49]} {[%emt
00:02:21]} Be6 {[%clk 00:11:53]} {[%emt 00:00:46]} 14. Nc5 {[%clk 00:11:48]}
{[%emt 00:00:06]} Bxc5 {[%clk 00:11:49]} {[%emt 00:00:09]} 15. Bxc5 {[%clk
00:11:52]} {[%emt 00:00:02]} Rfd8 {[%clk 00:11:50]} {[%emt 00:00:03]} 16. g4
{[%clk 00:10:03]} {[%emt 00:01:54]} Rac8 {[%clk 00:11:17]} {[%emt 00:00:38]} 17.
g5 {[%clk 00:09:46]} {[%emt 00:00:22]} Nd7 {[%clk 00:11:12]} {[%emt 00:00:09]}
18. Bf2 {[%clk 00:09:09]} {[%emt 00:00:43]} Nf8 {[%clk 00:10:03]} {[%emt
00:01:12]} 19. Nd5 {[%clk 00:07:26]} {[%emt 00:01:50]} Ng6 {[%clk 00:10:05]}
{[%emt 00:00:04]} 20. Nb6 {[%clk 00:07:30]} Rb8 {[%clk 00:10:01]} {[%emt
00:00:08]} 21. h4 {[%clk 00:06:55]} {[%emt 00:00:40]} Nf4 {[%clk 00:09:55]}
{[%emt 00:00:10]} 22. Bc4 {[%clk 00:06:34]} {[%emt 00:00:28]} Bxc4 {[%clk
00:08:33]} {[%emt 00:01:27]} 23. Nxc4 {[%clk 00:06:37]} {[%emt 00:00:02]} b5
{[%clk 00:08:23]} {[%emt 00:00:14]} 24. Ne3 {[%clk 00:06:05]} {[%emt 00:00:37]}
Nd4 {[%clk 00:07:55]} {[%emt 00:00:33]} 25. c3 {[%clk 00:05:58]} {[%emt
00:00:12]} Nde6 {[%clk 00:07:31]} {[%emt 00:00:29]} 26. Kc2 {[%clk 00:05:32]}
{[%emt 00:00:31]} Nc5 {[%clk 00:07:04]} {[%emt 00:00:32]} 27. Ng4 {[%clk
00:04:48]} {[%emt 00:00:50]} Nxe4 {[%clk 00:06:56]} {[%emt 00:00:13]} 28. Ba7
{[%clk 00:04:51]} {[%emt 00:00:01]} Ra8 {[%clk 00:06:38]} {[%emt 00:00:23]} 29.
Nxe5 {[%clk 00:04:32]} {[%emt 00:00:24]} Re8 {[%clk 00:06:09]} {[%emt
00:00:33]} 30. Bd4 {[%clk 00:04:09]} {[%emt 00:00:29]} Ng3 {[%clk 00:05:54]}
{[%emt 00:00:20]} 31. Rhe1 {[%clk 00:03:56]} {[%emt 00:00:17]} Nf5 {[%clk
00:04:57]} {[%emt 00:01:02]} 32. Re4 {[%clk 00:02:51]} {[%emt 00:01:12]} Ng6
{[%clk 00:04:20]} {[%emt 00:00:40]} 33. h5 {[%clk 00:02:22]} {[%emt 00:00:35]}
Nxe5 {[%clk 00:03:13]} {[%emt 00:01:12]} 34. Bxe5 {[%clk 00:01:39]} {[%emt
00:00:48]} Ng3 {[%clk 00:03:12]} {[%emt 00:00:05]} 35. Rg4 {[%clk 00:00:56]}
{[%emt 00:00:49]} Nxh5 {[%clk 00:03:01]} {[%emt 00:00:16]} 36. Bd4 {[%clk
00:01:00]} {[%emt 00:00:02]} Re6 {[%clk 00:02:46]} {[%emt 00:00:18]} 37. b3
{[%clk 00:00:34]} {[%emt 00:00:32]} Rc8 {[%clk 00:02:41]} {[%emt 00:00:09]} 38.
Kd3 {[%clk 00:00:28]} {[%emt 00:00:12]} g6 {[%clk 00:02:24]} {[%emt 00:00:23]}
39. c4 {[%clk 00:00:27]} {[%emt 00:00:05]} bxc4+ {[%clk 00:02:26]} {[%emt
00:00:03]} 40. bxc4 {[%clk 00:00:32]} {[%emt 00:00:01]} f5 {[%clk 00:02:24]}
{[%emt 00:00:06]} 41. gxf6 {[%clk 00:00:27]} {[%emt 00:00:10]} Nxf6 {[%clk
00:02:27]} {[%emt 00:00:01]} 42. Rf4 {[%clk 00:00:24]} {[%emt 00:00:09]} Nh5
{[%clk 00:02:24]} {[%emt 00:00:09]} 43. Rf3 {[%clk 00:00:20]} {[%emt 00:00:09]}
Ng7 {[%clk 00:02:25]} {[%emt 00:00:03]} 44. c5 {[%clk 00:00:10]} {[%emt
00:00:15]} Nf5 {[%clk 00:02:25]} {[%emt 00:00:05]} 45. Kc4 {[%clk 00:00:14]}
{[%emt 00:00:01]} Re4 {[%clk 00:02:14]} {[%emt 00:00:16]} 46. Rfd3 {[%clk
00:00:10]} {[%emt 00:00:09]} Kf7 {[%clk 00:02:07]} {[%emt 00:00:12]} 47. Kc3
{[%clk 00:00:08]} {[%emt 00:00:07]} Nxd4 {[%clk 00:02:04]} {[%emt 00:00:08]} 48.
Rxd4 {[%clk 00:00:12]} Rxc5+ {[%clk 00:02:05]} {[%emt 00:00:04]} 49. Kb4 {[%clk
00:00:16]} Rb5+ {[%clk 00:02:08]} {[%emt 00:00:01]} 50. Ka4 {[%clk 00:00:20]}
{[%emt 00:00:02]} Rxd4+ {[%clk 00:02:05]} {[%emt 00:00:08]} 51. Rxd4 {[%clk
00:00:23]} Rb6 {[%clk 00:01:59]} {[%emt 00:00:12]} 52. Rd7+ {[%clk 00:00:17]}
{[%emt 00:00:11]} Kg8 {[%clk 00:02:02]} {[%emt 00:00:02]} 53. Ka5 {[%clk
00:00:20]} {[%emt 00:00:02]} Rf6 {[%clk 00:02:01]} {[%emt 00:00:06]} 54. a4
{[%clk 00:00:22]} {[%emt 00:00:03]} h5 {[%clk 00:02:03]} {[%emt 00:00:03]} 55.
Kb4 {[%clk 00:00:07]} {[%emt 00:00:20]} h4 {[%clk 00:02:04]} {[%emt 00:00:03]}
56. Kc5 {[%clk 00:00:09]} {[%emt 00:00:04]} g5 {[%clk 00:01:57]} {[%emt
00:00:12]} 57. Rd5 {[%clk 00:00:11]} {[%emt 00:00:04]} Rg6 {[%clk 00:01:59]}
{[%emt 00:00:02]} 58. Kd4 {[%clk 00:00:14]} {[%emt 00:00:02]} Kg7 {[%clk
00:02:01]} {[%emt 00:00:04]} 59. Ke4 {[%clk 00:00:17]} {[%emt 00:00:01]} Kh6
{[%clk 00:01:59]} {[%emt 00:00:07]} 60. Kf5 {[%clk 00:00:14]} {[%emt 00:00:07]}
g4 {[%clk 00:01:44]} {[%emt 00:00:20]} 61. Rd8 {[%clk 00:00:10]} {[%emt
00:00:10]} g3 {[%clk 00:01:41]} {[%emt 00:00:08]} 62. Rh8+ {[%clk 00:00:08]}
{[%emt 00:00:06]} Kg7 {[%clk 00:01:43]} {[%emt 00:00:03]} 63. Rxh4 {[%clk
00:00:12]} {[%emt 00:00:02]} g2 {[%clk 00:01:46]} {[%emt 00:00:02]} 0-1

[Event "Rapid Tournament (RAP)"]
[Site "Biel, Switzerland"]
[Date "2026.07.12"]
[Round "9.10"]
[White "Amonatov, Farrukh"]
[Black "Filipovic, Branko"]
[Result "1-0"]
[TimeControl "15 + 5"]
[WhiteTitle "-"]
[BlackTitle "-"]
[WhiteFideId "14700077"]
[BlackFideId "14507951"]
[WhiteElo "2593"]
[BlackElo "2279"]

1. e4 {[%clk 00:15:09]} {[%emt 00:00:28]} Nf6 {[%clk 00:15:06]} {[%emt
00:00:05]} 2. e5 {[%clk 00:15:12]} {[%emt 00:00:03]} Nd5 {[%clk 00:15:11]} 3.
c4 {[%clk 00:15:15]} Nb6 {[%clk 00:15:15]} {[%emt 00:00:02]} 4. d4 {[%clk
00:15:19]} d6 {[%clk 00:15:19]} {[%emt 00:00:01]} 5. f4 {[%clk 00:15:22]}
{[%emt 00:00:03]} dxe5 {[%emt 00:00:11]} 6. fxe5 {[%clk 00:15:26]} Bf5 {[%clk
00:15:17]} {[%emt 00:00:02]} 7. Nc3 {[%clk 00:15:28]} {[%emt 00:00:02]} e6
{[%clk 00:15:21]} 8. Be3 {[%clk 00:15:29]} {[%emt 00:00:04]} Bb4 {[%clk
00:15:16]} {[%emt 00:00:10]} 9. Nf3 {[%clk 00:15:31]} {[%emt 00:00:02]} c5
{[%clk 00:15:19]} {[%emt 00:00:03]} 10. a3 {[%clk 00:15:06]} {[%emt 00:00:30]}
cxd4 {[%clk 00:15:18]} {[%emt 00:00:06]} 11. axb4 {[%clk 00:15:09]} {[%emt
00:00:02]} dxe3 {[%clk 00:15:19]} {[%emt 00:00:05]} 12. Qxd8+ {[%clk 00:15:12]}
Kxd8 {[%clk 00:15:23]} {[%emt 00:00:01]} 13. c5 {[%clk 00:15:09]} {[%emt
00:00:07]} N6d7 {[%clk 00:14:50]} {[%emt 00:00:39]} 14. Bb5 {[%clk 00:15:04]}
{[%emt 00:00:09]} Ke7 {[%clk 00:13:34]} {[%emt 00:01:23]} 15. h3 {[%clk
00:14:50]} {[%emt 00:00:17]} Rc8 {[%clk 00:13:11]} {[%emt 00:00:30]} 16. Ke2
{[%clk 00:14:43]} {[%emt 00:00:10]} Nc6 {[%clk 00:12:50]} {[%emt 00:00:27]} 17.
Bxc6 {[%clk 00:14:45]} {[%emt 00:00:02]} Rxc6 {[%clk 00:12:54]} {[%emt
00:00:02]} 18. Kxe3 {[%clk 00:14:39]} {[%emt 00:00:11]} Rcc8 {[%clk 00:09:56]}
{[%emt 00:03:03]} 19. Nb5 {[%clk 00:14:08]} {[%emt 00:00:35]} a5 {[%clk
00:06:37]} {[%emt 00:03:25]} 20. Nd6 {[%clk 00:14:01]} {[%emt 00:00:12]} Rcb8
{[%clk 00:06:41]} {[%emt 00:00:01]} 21. bxa5 {[%clk 00:13:39]} {[%emt
00:00:28]} Nxc5 {[%clk 00:06:35]} {[%emt 00:00:10]} 22. b4 {[%clk 00:13:42]}
{[%emt 00:00:02]} Nd7 {[%clk 00:06:29]} {[%emt 00:00:12]} 23. Rhc1 {[%clk
00:13:36]} {[%emt 00:00:10]} f6 {[%clk 00:04:06]} {[%emt 00:02:28]} 24. Rc7
{[%clk 00:13:04]} {[%emt 00:00:36]} b5 {[%clk 00:03:37]} {[%emt 00:00:35]} 25.
Rd1 {[%clk 00:12:55]} {[%emt 00:00:13]} 1-0

[Event "Rapid Tournament (RAP)"]
[Site "Biel, Switzerland"]
[Date "2026.07.12"]
[Round "9.11"]
[White "Ling, Chenxuan"]
[Black "Arjun, Kalyan"]
[Result "0-1"]
[TimeControl "15 + 5"]
[WhiteTitle "-"]
[BlackTitle "-"]
[WhiteFideId "30983118"]
[BlackFideId "35018701"]
[WhiteElo "2077"]
[BlackElo "2390"]

1. d4 {[%clk 00:15:07]} d5 {[%clk 00:15:09]} {[%emt 00:00:01]} 2. c4 {[%clk
00:15:11]} {[%emt 00:00:01]} e6 {[%clk 00:15:13]} {[%emt 00:00:01]} 3. Nc3
{[%clk 00:15:15]} {[%emt 00:00:03]} h6 {[%clk 00:15:17]} 4. Nf3 {[%clk
00:15:17]} {[%emt 00:00:01]} Nf6 {[%clk 00:15:21]} {[%emt 00:00:02]} 5. cxd5
{[%clk 00:15:15]} {[%emt 00:00:07]} exd5 {[%clk 00:15:25]} 6. Bf4 {[%clk
00:15:17]} {[%emt 00:00:03]} Bd6 {[%clk 00:15:28]} {[%emt 00:00:01]} 7. Bxd6
{[%clk 00:15:20]} {[%emt 00:00:02]} Qxd6 {[%clk 00:15:32]} {[%emt 00:00:01]} 8.
e3 {[%clk 00:15:25]} {[%emt 00:00:01]} O-O {[%clk 00:15:33]} {[%emt 00:00:03]}
9. Bd3 {[%clk 00:15:28]} Bg4 {[%clk 00:14:44]} {[%emt 00:00:55]} 10. h3 {[%clk
00:15:30]} {[%emt 00:00:04]} Bxf3 {[%clk 00:14:44]} {[%emt 00:00:05]} 11. Qxf3
{[%clk 00:15:33]} {[%emt 00:00:01]} c6 {[%clk 00:14:45]} {[%emt 00:00:04]} 12.
O-O {[%clk 00:15:35]} {[%emt 00:00:03]} Nbd7 {[%clk 00:14:50]} {[%emt
00:00:01]} 13. Rac1 {[%clk 00:15:36]} {[%emt 00:00:04]} Rfe8 {[%clk 00:14:52]}
{[%emt 00:00:03]} 14. Qe2 {[%clk 00:15:35]} {[%emt 00:00:06]} Ne4 {[%clk
00:14:38]} {[%emt 00:00:19]} 15. Nxe4 {[%clk 00:15:34]} {[%emt 00:00:05]} dxe4
{[%clk 00:14:42]} {[%emt 00:00:02]} 16. Bc4 {[%clk 00:15:38]} Nf6 {[%clk
00:14:25]} {[%emt 00:00:21]} 17. Rfd1 {[%clk 00:15:41]} {[%emt 00:00:02]} a5
{[%clk 00:14:19]} {[%emt 00:00:12]} 18. a3 {[%clk 00:15:38]} {[%emt 00:00:08]}
g6 {[%clk 00:13:38]} {[%emt 00:00:45]} 19. Ba2 {[%clk 00:15:34]} {[%emt
00:00:09]} Kg7 {[%clk 00:13:40]} {[%emt 00:00:03]} 20. Qd2 {[%clk 00:15:30]}
{[%emt 00:00:10]} a4 {[%clk 00:13:19]} {[%emt 00:00:26]} 21. Qc3 {[%clk
00:15:30]} {[%emt 00:00:05]} h5 {[%clk 00:12:54]} {[%emt 00:00:30]} 22. d5
{[%clk 00:15:02]} {[%emt 00:00:32]} cxd5 {[%clk 00:12:49]} {[%emt 00:00:10]} 23.
Rxd5 {[%clk 00:15:04]} {[%emt 00:00:03]} Qe7 {[%clk 00:12:29]} {[%emt
00:00:26]} 24. Rc5 {[%clk 00:14:57]} {[%emt 00:00:11]} Rad8 {[%clk 00:11:39]}
{[%emt 00:00:56]} 25. Qb4 {[%clk 00:14:24]} {[%emt 00:00:38]} Rd7 {[%clk
00:11:32]} {[%emt 00:00:12]} 26. Qxa4 {[%clk 00:14:25]} {[%emt 00:00:04]} Red8
{[%clk 00:11:36]} {[%emt 00:00:01]} 27. Qc4 {[%clk 00:14:01]} {[%emt 00:00:28]}
Rd1+ {[%clk 00:10:00]} {[%emt 00:01:41]} 28. Rxd1 {[%clk 00:12:55]} {[%emt
00:01:12]} Rxd1+ {[%clk 00:10:04]} {[%emt 00:00:01]} 29. Kh2 {[%clk 00:12:54]}
{[%emt 00:00:05]} Ng4+ {[%clk 00:09:11]} {[%emt 00:00:58]} 30. Kg3 {[%clk
00:12:51]} {[%emt 00:00:08]} Qd6+ {[%clk 00:08:45]} {[%emt 00:00:31]} 31. f4
{[%clk 00:12:52]} {[%emt 00:00:05]} exf3+ {[%clk 00:08:39]} {[%emt 00:00:11]}
32. Qf4 {[%clk 00:12:50]} {[%emt 00:00:06]} fxg2 {[%clk 00:07:05]} {[%emt
00:01:39]} 33. Kxg2 {[%clk 00:12:41]} {[%emt 00:00:14]} Qd2+ {[%clk 00:07:01]}
{[%emt 00:00:09]} 34. Kg3 {[%clk 00:12:37]} {[%emt 00:00:10]} Rg1+ {[%clk
00:07:02]} {[%emt 00:00:03]} 35. Kh4 {[%clk 00:12:39]} {[%emt 00:00:02]} Qe1+
{[%clk 00:07:06]} {[%emt 00:00:03]} 36. Kg5 {[%clk 00:12:43]} Ne5+ {[%clk
00:07:02]} {[%emt 00:00:08]} 0-1

[Event "Rapid Tournament (RAP)"]
[Site "Biel, Switzerland"]
[Date "2026.07.12"]
[Round "9.12"]
[White "Maier, Christian"]
[Black "Gautier, Anand"]
[Result "0-1"]
[TimeControl "15 + 5"]
[WhiteTitle "-"]
[BlackTitle "-"]
[WhiteFideId "4601955"]
[BlackFideId "26010186"]
[WhiteElo "2314"]
[BlackElo "2223"]

1. e4 {[%clk 00:15:07]} {[%emt 00:00:02]} c5 {[%clk 00:15:09]} {[%emt
00:00:01]} 2. Nf3 {[%clk 00:15:08]} {[%emt 00:00:03]} d6 {[%clk 00:15:14]}
{[%emt 00:00:01]} 3. Bb5+ {[%clk 00:15:07]} {[%emt 00:00:06]} Bd7 {[%clk
00:15:00]} {[%emt 00:00:18]} 4. c4 {[%clk 00:15:10]} {[%emt 00:00:01]} Nc6
{[%clk 00:14:54]} {[%emt 00:00:12]} 5. Nc3 {[%clk 00:15:14]} {[%emt 00:00:02]}
Nf6 {[%clk 00:14:56]} {[%emt 00:00:02]} 6. O-O {[%clk 00:15:15]} {[%emt
00:00:04]} g6 {[%clk 00:14:59]} {[%emt 00:00:03]} 7. d3 {[%clk 00:15:16]}
{[%emt 00:00:03]} Bg7 {[%clk 00:15:01]} {[%emt 00:00:02]} 8. Bg5 {[%clk
00:15:19]} {[%emt 00:00:03]} O-O {[%clk 00:15:04]} {[%emt 00:00:02]} 9. Qd2
{[%clk 00:15:22]} {[%emt 00:00:02]} Nb8 {[%clk 00:14:53]} {[%emt 00:00:16]} 10.
h3 {[%clk 00:15:15]} {[%emt 00:00:12]} a6 {[%clk 00:14:57]} {[%emt 00:00:01]}
11. Bxd7 {[%clk 00:15:16]} {[%emt 00:00:04]} Qxd7 {[%clk 00:15:00]} {[%emt
00:00:02]} 12. Bh6 {[%clk 00:15:19]} {[%emt 00:00:01]} Nc6 {[%clk 00:15:04]}
{[%emt 00:00:01]} 13. Nd5 {[%clk 00:14:12]} {[%emt 00:01:12]} Rae8 {[%clk
00:13:49]} {[%emt 00:01:19]} 14. Bxg7 {[%clk 00:13:50]} {[%emt 00:00:28]} Kxg7
{[%clk 00:13:53]} {[%emt 00:00:02]} 15. Qc3 {[%clk 00:13:46]} {[%emt 00:00:08]}
e5 {[%clk 00:13:40]} {[%emt 00:00:18]} 16. Nxf6 {[%clk 00:13:44]} {[%emt
00:00:07]} Kxf6 {[%clk 00:13:44]} {[%emt 00:00:02]} 17. a3 {[%clk 00:13:42]}
{[%emt 00:00:07]} a5 {[%clk 00:13:34]} {[%emt 00:00:14]} 18. Nh2 {[%clk
00:13:38]} {[%emt 00:00:09]} Kg7 {[%clk 00:13:37]} {[%emt 00:00:02]} 19. f4
{[%clk 00:13:40]} {[%emt 00:00:03]} f6 {[%clk 00:13:37]} {[%emt 00:00:06]} 20.
f5 {[%clk 00:13:36]} {[%emt 00:00:08]} Nd4 {[%clk 00:13:30]} {[%emt 00:00:12]}
21. Rae1 {[%clk 00:13:37]} {[%emt 00:00:04]} a4 {[%clk 00:13:23]} {[%emt
00:00:13]} 22. g4 {[%clk 00:12:45]} {[%emt 00:00:56]} g5 {[%clk 00:12:45]}
{[%emt 00:00:43]} 23. Nf3 {[%clk 00:12:38]} {[%emt 00:00:13]} h5 {[%clk
00:12:30]} {[%emt 00:00:20]} 24. Nxd4 {[%clk 00:12:32]} {[%emt 00:00:11]} exd4
{[%clk 00:12:32]} {[%emt 00:00:03]} 25. Qc2 {[%clk 00:12:34]} {[%emt 00:00:03]}
Rh8 {[%clk 00:12:23]} {[%emt 00:00:14]} 26. Rf2 {[%clk 00:11:02]} {[%emt
00:01:36]} hxg4 {[%clk 00:12:11]} {[%emt 00:00:17]} 27. hxg4 {[%clk 00:11:06]}
{[%emt 00:00:01]} Rh4 {[%clk 00:12:15]} {[%emt 00:00:02]} 28. Rg2 {[%clk
00:11:09]} {[%emt 00:00:02]} Reh8 {[%clk 00:12:19]} {[%emt 00:00:01]} 29. Rf1
{[%clk 00:10:40]} {[%emt 00:00:34]} Rh3 {[%clk 00:11:34]} {[%emt 00:00:49]} 30.
Kf2 {[%clk 00:09:30]} {[%emt 00:01:15]} Qe8 {[%clk 00:10:10]} {[%emt 00:01:29]}
31. Ke1 {[%clk 00:09:29]} {[%emt 00:00:06]} Re3+ {[%clk 00:08:42]} {[%emt
00:01:34]} 32. Re2 {[%clk 00:08:28]} {[%emt 00:01:05]} Rg3 {[%clk 00:08:03]}
{[%emt 00:00:44]} 33. Rh2 {[%clk 00:08:16]} {[%emt 00:00:17]} Rxh2 {[%clk
00:07:12]} {[%emt 00:00:56]} 34. Qxh2 {[%clk 00:08:19]} {[%emt 00:00:02]} Rxd3
{[%clk 00:07:12]} {[%emt 00:00:06]} 0-1